[Event "FRA-ch Youth U18 2018"]
[Site "Agen"]
[Date "2018.04.17"]
[Round "4"]
[White "Burri, Quentin"]
[Black "Mazzella, Enzo"]
[Result "1-0"]
[ECO "B04"]
[WhiteElo "2405"]
[BlackElo "2226"]
[Annotator "NA"]
[PlyCount "69"]
[EventDate "2018.??.??"]
[EventType "swiss"]
[EventCountry "FRA"]
[SourceTitle "playchess.com"]
[Source "ChessBase"]
[SourceQuality "1"]
[TimeControl "5400+30"]

1. e4 {[%emt 0:00:00]} Nf6 {[%emt 0:00:10]} 2. e5 {[%emt 0:00:00]} Nd5 {[%emt 0:00:06]} 3. d4 {[%emt 0:00:01]} d6 {[%emt 0:00:07]} 4. Nf3 {[%emt 0:00:37]} dxe5 {[%emt 0:00:45]} 5. Nxe5 {[%emt 0:00:16]} c6 {[%emt 0:00:58] LiveBook: 1070 Games} 6. Be2 {[%emt 0:00:54]} Nd7 {[%emt 0:00:28]} 7. c4 {[%emt 0:04:08] B04: Alekhine's Defence: 4 Nf3} N5f6 {[%emt 0:04:35]} ({Black should try} 7... Nc7 $14 8. Nf3 g6 9. Nc3 Bg7 10. O-O O-O 11. Bf4 Nf6 12. h3 Bf5 13. Be5 Ne4 14. Bxg7 Kxg7 15. Re1 Nf6 16. Qd2 Qd6 17. Rad1 Rad8 18. Qe3 {1-0 (33) Eljanov,P (2734)-Kasimdzhanov,R (2676) Douglas 2017}) 8. f4 {[%emt 0:04:54]} e6 $146 {[%emt 0:07:24]} ({Find the theoretical novelty and annotate with similar games:} 8... Ne4 9. O-O g6 10. Be3 Bg7 11. Qc2 Nd6 12. g4 f6 13. Nxd7 Bxd7 14. f5 gxf5 15. gxf5 Rg8 16. Kh1 Qc8 17. Bd3 c5 18. d5 Qc7 19. Nc3 Nf7 20. Ne4 b6 21. Bf4 Ne5 {0-1 (21) Piepereit,R (1767)-Wechselberg,C (1586) GER email 2013}) 9. O-O {[%emt 0:03:24]} c5 {[%emt 0:05:35] [#]} 10. d5 {[%emt 0:02:56]} (10. Be3 $1 $16) 10... Nb6 {[%emt 0:10:19]} 11. Nc3 {[%emt 0:05:15]} Be7 {[%emt 0:07:34]} 12. Bf3 {[%emt 0:02:23]} exd5 {[%emt 0:01:35]} 13. cxd5 {[%emt 0:02:07]} O-O {[%emt 0:01:38]} 14. b3 {[%emt 0:05:14]} Bd6 {[%emt 0:06:50]} 15. Nc4 {[%emt 0:04:57]} Nxc4 {[%emt 0:06:39]} 16. bxc4 {[%emt 0:00:06]} a6 {[%emt 0:01:02]} 17. a4 {[%emt 0:04:23]} Qc7 {[%emt 0:03:22]} 18. g3 {[%emt 0:00:41]} Re8 {[%emt 0:00:19]} 19. Qc2 {[%emt 0:05:53]} Bh3 {[%emt 0:07:00]} 20. Bg2 {[%emt 0:03:16]} Qd7 {[%emt 0:01:01]} 21. Bxh3 {[%emt 0:08:26]} Qxh3 {[%emt 0:01:07]} 22. Rb1 {[%emt 0:08:45]} Qd7 {[%emt 0:12:24]} 23. a5 {[%emt 0:03:40]} Re7 {[%emt 0:01:03]} 24. Bd2 {[%emt 0:01:31]} Qh3 {[%emt 0:07:27]} 25. Rb6 {[%emt 0:06:20]} Ng4 {[%emt 0:06:21]} 26. Bc1 {[%emt 0:02:28]} Rae8 {[%emt 0:01:44]} 27. Rxd6 $11 {[%emt 0:12:45]} Re1 {[%emt 0:00:16]} 28. Qg2 {[%emt 0:00:06]} Rxf1+ {[%emt 0:02:01]} 29. Kxf1 {[%emt 0:00:05]} Nxh2+ {[%emt 0:01:21]} 30. Kg1 {[%emt 0:00:26]} Re1+ {[%emt 0:01:26]} 31. Kf2 {[%emt 0:00:07]} Rf1+ {[%emt 0:00:24]} 32. Ke3 {[%emt 0:00:05]} Qc8 {[%emt 0:02:55]} 33. Qxh2 {[%emt 0:00:54]} Qe8+ {[%emt 0:00:14]} 34. Kd3 {[%emt 0:00:14]} Rxc1 {[%emt 0:00:46]} 35. Qe2 {[%emt 0:00:29]} 1-0

[Event "FRA-ch Youth U18 2018"]
[Site "Agen"]
[Date "2018.04.17"]
[Round "4"]
[White "Mohammad, Fahim"]
[Black "Derige Kane, Yan"]
[Result "1-0"]
[ECO "D30"]
[WhiteElo "2355"]
[BlackElo "2146"]
[Annotator "NA"]
[PlyCount "75"]
[EventDate "2018.??.??"]
[EventType "swiss"]
[EventCountry "FRA"]
[SourceTitle "playchess.com"]
[Source "ChessBase"]
[SourceQuality "1"]
[TimeControl "5400+30"]

1. d4 {[%emt 0:05:07]} d5 {[%emt 0:00:08]} 2. c4 {[%emt 0:00:06]} e6 {[%emt 0:00:07]} 3. Nf3 {[%emt 0:00:05]} Nf6 {[%emt 0:00:16]} 4. e3 {[%emt 0:00:30]} Be7 {[%emt 0:01:43]} 5. b3 {[%emt 0:01:30]} Nbd7 {[%emt 0:00:45]} 6. Bd3 {[%emt 0:00:29]} b6 {[%emt 0:01:21]} 7. O-O {[%emt 0:00:20]} Bb7 {[%emt 0:00:28]} 8. Bb2 {[%emt 0:00:56]} O-O {[%emt 0:02:04]} 9. Nbd2 {[%emt 0:00:14]} c5 {[%emt 0:01:26] LiveBook: 95 Games} 10. Qe2 {[%emt 0:00:14]} a5 {[%emt 0:04:05] E14: Queen's Indian: Classical Variation (4 e3)} (10... cxd4 11. exd4 Re8 12. Rac1 Rc8 13. Rfd1 Bf8 14. Ne5 dxc4 15. bxc4 Nxe5 16. dxe5 Nd7 17. Be4 Qc7 18. Bxb7 Qxb7 19. Ne4 {1-0 (49) Mamedyarov,S (2804)-Ju,W (2572) chess.com INT 2018}) 11. Rac1 $146 {[%emt 0:12:38]} ({Find the theoretical novelty and annotate with similar games:} 11. a4 Ne4 12. Rfd1 Qc7 13. Rac1 Rac8 14. cxd5 exd5 15. dxc5 Ndxc5 16. Nd4 Rfd8 17. Nf5 Bf8 18. Nxe4 dxe4 19. Nh6+ Kh8 20. Bc4 Rxd1+ 21. Qxd1 Qe7 22. Nxf7+ Kg8 23. Ng5+ Kh8 24. Qh5 {1-0 (24) Almagro Llamas,P (2466)-Vinuela Diaz,S (2193) Linares 2017}) 11... Qc7 {[%emt 0:24:08]} 12. Rfd1 {[%emt 0:05:08]} Bd6 {[%emt 0:05:57]} 13. e4 {[%emt 0:12:20]} dxe4 {[%emt 0:02:32]} 14. Nxe4 {[%emt 0:00:11]} Nxe4 {[%emt 0:11:05]} 15. Bxe4 {[%emt 0:00:25]} Bxe4 {[%emt 0:01:04]} 16. Qxe4 {[%emt 0:00:08]} Bf4 {[%emt 0:01:52]} 17. Rb1 {[%emt 0:09:03]} cxd4 {[%emt 0:04:26]} 18. Qxd4 {[%emt 0:06:02]} Nf6 {[%emt 0:00:46]} 19. g3 {[%emt 0:00:20]} Bh6 {[%emt 0:04:18]} 20. Qh4 {[%emt 0:01:13]} Nd7 {[%emt 0:02:21]} 21. Qe7 {[%emt 0:04:10]} Ra7 {[%emt 0:06:28] [#]} 22. Nd4 {[%emt 0:11:03]} ({White should try} 22. Rd6 $1 $16) 22... Nc5 {[%emt 0:09:43]} 23. Qh4 {[%emt 0:01:24]} Qe7 {[%emt 0:04:45]} 24. Qg4 {[%emt 0:04:49]} Qg5 {[%emt 0:01:38]} 25. Qf3 {[%emt 0:01:16]} e5 {[%emt 0:02:44]} 26. h4 {[%emt 0:04:24]} Qg6 {[%emt 0:00:46]} 27. h5 {[%emt 0:01:19]} Qg5 {[%emt 0:00:26]} 28. Bc1 {[%emt 0:00:43]} e4 {[%emt 0:05:21]} 29. Bxg5 {[%emt 0:00:47]} exf3 {[%emt 0:00:09]} 30. Bxh6 {[%emt 0:00:16]} gxh6 {[%emt 0:00:07]} 31. Nxf3 {[%emt 0:00:04]} Re8 {[%emt 0:00:21]} 32. Rb2 $18 {[%emt 0:01:36]} Nd7 {[%emt 0:01:16]} 33. Rd6 {[%emt 0:01:27]} Kg7 {[%emt 0:00:53]} 34. Nd4 {[%emt 0:00:35]} Re5 {[%emt 0:00:44]} 35. g4 {[%emt 0:02:19]} Rb7 {[%emt 0:01:16]} 36. Nf5+ {[%emt 0:00:26]} Kf8 {[%emt 0:00:08]} 37. Rbd2 {[%emt 0:00:35]} Nf6 {[%emt 0:00:37]} 38. Rxf6 {[%emt 0:00:06]} 1-0

[Event "FRA-ch Youth U18 2018"]
[Site "Agen"]
[Date "2018.04.17"]
[Round "4"]
[White "Heliot, Xabi"]
[Black "Laurent-Paoli, Pierre"]
[Result "1/2-1/2"]
[ECO "A20"]
[WhiteElo "2160"]
[BlackElo "2355"]
[Annotator "NA"]
[PlyCount "104"]
[EventDate "2018.??.??"]
[EventType "swiss"]
[EventCountry "FRA"]
[SourceTitle "playchess.com"]
[Source "ChessBase"]
[SourceQuality "1"]
[TimeControl "5400+30"]

1. c4 {[%emt 0:00:33]} e5 {[%emt 0:00:19]} 2. g3 {[%emt 0:00:10]} Nc6 {[%emt 0:00:29]} 3. Bg2 {[%emt 0:00:23]} Bc5 {[%emt 0:00:46]} 4. Nc3 {[%emt 0:04:49]} d6 {[%emt 0:00:21]} 5. e3 {[%emt 0:04:25]} a6 {[%emt 0:00:31] A25: English Opening vs King's Indian with ...Nc6 but without early d3} 6. Nge2 {[%emt 0:01:46]} (6. Nf3 Nf6 7. O-O O-O 8. h3 Ba7 9. d4 h6 10. dxe5 dxe5 11. Qxd8 Rxd8 12. b3 Be6 13. Ba3 Rd7 14. Rfd1 Rad8 15. Rxd7 Rxd7 {½-½ (41) Howell,D (2676)-Ponomariov,R (2694) Riadh 2017}) 6... h5 {[%emt 0:00:30]} 7. d4 {[%emt 0:07:14] LiveBook: 8 Games} Ba7 {[%emt 0:00:21]} 8. h3 {[%emt 0:27:42]} h4 {[%emt 0:01:16]} 9. g4 {[%emt 0:01:26]} f5 {[%emt 0:00:10]} 10. gxf5 {[%emt 0:00:13]} Bxf5 {[%emt 0:00:35]} 11. e4 {[%emt 0:00:22]} Bd7 {[%emt 0:02:39]} 12. Be3 {[%emt 0:00:07]} exd4 {[%emt 0:08:44]} 13. Nxd4 {[%emt 0:00:14]} Nxd4 $146 {[%emt 0:02:11]} ({Predecessor:} 13... Bxd4 14. Bxd4 {1-0 (49) Bailet,P (2536)-Haldorsen,B (2362) Riga 2017}) 14. Bxd4 {[%emt 0:00:05]} Qg5 {[%emt 0:01:31]} 15. Bf3 {[%emt 0:02:22]} Bxd4 {[%emt 0:04:15]} 16. Qxd4 {[%emt 0:00:08]} Nf6 {[%emt 0:00:24]} 17. Qd2 {[%emt 0:11:19]} Qxd2+ {[%emt 0:02:04]} 18. Kxd2 {[%emt 0:00:01]} O-O {[%emt 0:01:02]} 19. Ke3 {[%emt 0:01:12]} Rae8 {[%emt 0:03:20]} 20. Nd5 {[%emt 0:04:20]} Nxd5+ {[%emt 0:07:04]} 21. cxd5 {[%emt 0:00:10]} c6 {[%emt 0:00:26]} 22. Rhd1 {[%emt 0:01:19]} Rf6 {[%emt 0:13:07]} 23. Bg4 {[%emt 0:05:48]} Bxg4 {[%emt 0:00:53]} 24. hxg4 {[%emt 0:00:01]} Ref8 {[%emt 0:00:28]} 25. dxc6 {[%emt 0:01:21]} Rf3+ {[%emt 0:02:39]} 26. Kd4 {[%emt 0:00:09]} bxc6 {[%emt 0:00:07]} 27. Rac1 {[%emt 0:00:24]} h3 $17 {[%emt 0:17:29]} ({Resist} 27... Rxf2 28. Rxc6 R8f4 29. g5 $17) ({Black should try} 27... c5+ $19 28. Kc4 Re8 29. Rxd6 Rxe4+ 30. Kxc5 Rxg4) 28. Rc3 {[%emt 0:15:01]} Rxf2 {[%emt 0:01:15]} 29. Rxh3 {[%emt 0:00:14]} Rxb2 {[%emt 0:00:17]} 30. Ra3 {[%emt 0:01:03]} Rb6 {[%emt 0:02:56]} 31. Ke3 {[%emt 0:03:07]} Rf6 {[%emt 0:02:31]} 32. Rb3 {[%emt 0:01:17]} Rxb3+ {[%emt 0:03:01]} 33. axb3 {[%emt 0:00:01]} Re6 {[%emt 0:00:24]} 34. Kf4 {[%emt 0:01:07]} Kf7 {[%emt 0:00:40]} 35. Ra1 {[%emt 0:01:29]} d5 {[%emt 0:00:20]} 36. exd5 {[%emt 0:00:05]} cxd5 {[%emt 0:00:07]} 37. Ra5 {[%emt 0:00:19]} Rb6 {[%emt 0:07:01]} 38. Rxd5 {[%emt 0:00:19]} Rxb3 {[%emt 0:00:10]} 39. Rd7+ {[%emt 0:00:08]} Kg8 {[%emt 0:00:24]} 40. Ra7 {[%emt 0:00:49]} Rb6 {[%emt 0:00:16]} 41. Kf5 {[%emt 0:02:26]} Rf6+ {[%emt 0:09:14]} 42. Kg5 {[%emt 0:01:17]} Kh7 {[%emt 0:00:12]} 43. Kh5 {[%emt 0:00:22]} Rh6+ {[%emt 0:00:03]} 44. Kg5 {[%emt 0:00:08]} Rb6 {[%emt 0:03:30]} 45. Kh5 {[%emt 0:00:24]} Rb5+ {[%emt 0:04:39]} 46. g5 {[%emt 0:00:07]} a5 {[%emt 0:00:07]} 47. Rc7 {[%emt 0:00:08]} Rd5 {[%emt 0:00:49]} 48. Ra7 {[%emt 0:00:06]} Re5 {[%emt 0:00:22]} 49. Rb7 {[%emt 0:00:19]} Rc5 {[%emt 0:00:33]} 50. Ra7 {[%emt 0:00:05]} Rb5 {[%emt 0:00:45]} 51. Rc7 {[%emt 0:00:06]} Rd5 {[%emt 0:00:54]} 52. Ra7 {[%emt 0:00:05]} Rb5 {[%emt 0:00:45]} 1/2-1/2

[Event "FRA-ch Youth U18 2018"]
[Site "Agen"]
[Date "2018.04.17"]
[Round "4"]
[White "Lomandong, Noela-Joyce"]
[Black "El Barbry, Sarah"]
[Result "0-1"]
[ECO "A46"]
[WhiteElo "2053"]
[BlackElo "1750"]
[Annotator "NA"]
[PlyCount "88"]
[EventDate "2018.??.??"]
[EventType "swiss"]
[EventCountry "FRA"]
[SourceTitle "playchess.com"]
[Source "ChessBase"]
[SourceQuality "1"]
[TimeControl "5400+30"]

1. d4 {[%emt 0:00:00]} Nf6 {[%emt 0:05:25]} 2. Nf3 {[%emt 0:00:05]} e6 {[%emt 0:00:25]} 3. e3 {[%emt 0:00:23]} b6 {[%emt 0:00:31]} 4. Bd3 {[%emt 0:00:12]} Bb7 {[%emt 0:00:04]} 5. O-O {[%emt 0:01:08]} Be7 {[%emt 0:00:17]} 6. c4 {[%emt 0:01:22]} Ne4 {[%emt 0:08:21] LiveBook: 22 Games} 7. Nc3 {[%emt 0:08:05]} Nxc3 $11 {[%emt 0:08:22]} 8. bxc3 {[%emt 0:00:10]} d6 {[%emt 0:00:29]} 9. Nd2 {[%emt 0:13:09]} Nd7 {[%emt 0:03:47]} 10. Be4 {[%emt 0:01:02]} Bxe4 {[%emt 0:00:42]} 11. Nxe4 {[%emt 0:00:07]} O-O {[%emt 0:00:19]} 12. Qd3 {[%emt 0:15:00]} f5 {[%emt 0:11:26]} 13. Ng3 {[%emt 0:00:45]} Bh4 {[%emt 0:00:27]} 14. f3 {[%emt 0:15:50]} Bxg3 {[%emt 0:01:20]} 15. hxg3 {[%emt 0:00:02]} Qg5 {[%emt 0:02:13]} 16. g4 {[%emt 0:12:24]} fxg4 {[%emt 0:03:05]} 17. Qe4 {[%emt 0:03:55]} gxf3 {[%emt 0:40:01]} 18. Rxf3 {[%emt 0:00:34]} Rxf3 {[%emt 0:00:23]} 19. Qxf3 {[%emt 0:00:02]} Rf8 {[%emt 0:02:10]} 20. Qe2 {[%emt 0:09:21]} Qg3 {[%emt 0:00:02]} 21. Bd2 {[%emt 0:02:01]} Nf6 {[%emt 0:05:17]} 22. Rf1 {[%emt 0:02:55]} Ng4 {[%emt 0:01:03]} 23. Rxf8+ Kxf8 24. Qf3+ {[%emt 0:04:52]} Qxf3 {[%emt 0:00:00]} 25. gxf3 {[%emt 0:00:01]} Nf6 {[%emt 0:00:11]} 26. e4 {[%emt 0:00:40]} c6 {[%emt 0:02:00]} 27. Kf2 {[%emt 0:02:32]} Ke7 {[%emt 0:01:49]} 28. Bg5 {[%emt 0:01:26]} Kf7 {[%emt 0:01:02]} 29. Bf4 {[%emt 0:01:45]} d5 {[%emt 0:00:26]} 30. cxd5 {[%emt 0:01:48]} cxd5 {[%emt 0:00:38]} 31. exd5 {[%emt 0:00:18]} Nxd5 {[%emt 0:01:38]} 32. Bd2 {[%emt 0:00:34]} b5 {[%emt 0:00:04]} 33. Kg3 {[%emt 0:00:33]} Kg6 {[%emt 0:00:17]} 34. Kg4 {[%emt 0:00:49]} h5+ {[%emt 0:01:47]} 35. Kh4 {[%emt 0:00:09]} Ne7 {[%emt 0:00:05]} 36. Kg3 {[%emt 0:00:37]} Kf5 {[%emt 0:00:15]} 37. Kh4 {[%emt 0:01:28]} g6 {[%emt 0:00:10]} 38. Be3 {[%emt 0:00:54]} Nd5 {[%emt 0:00:02]} 39. Bd2 {[%emt 0:00:04]} Nf4 {[%emt 0:00:12]} 40. Kg3 {[%emt 0:00:50]} g5 {[%emt 0:00:42]} 41. Bxf4 h4+ 42. Kf2 {[%emt 0:02:11]} Kxf4 {[%emt 0:00:06]} 43. Kg2 {[%emt 0:00:06]} Ke3 {[%emt 0:00:04]} 44. a3 {[%emt 0:00:14]} a5 {[%emt 0:00:03]} 0-1

[Event "FRA-ch Youth U18 2018"]
[Site "Agen"]
[Date "2018.04.17"]
[Round "4"]
[White "Salvador, Lucie"]
[Black "Belluire, Beatrice"]
[Result "1-0"]
[ECO "A05"]
[WhiteElo "1955"]
[BlackElo "1818"]
[Annotator "NA"]
[PlyCount "73"]
[EventDate "2018.??.??"]
[EventType "swiss"]
[EventCountry "FRA"]
[SourceTitle "playchess.com"]
[Source "ChessBase"]
[SourceQuality "1"]
[TimeControl "5400+30"]

1. Nf3 {[%emt 0:00:00]} Nf6 2. g3 {[%emt 0:00:01]} b5 {[%emt 0:01:10]} 3. Bg2 {[%emt 0:03:50]} Bb7 {[%emt 0:00:03]} 4. O-O {[%emt 0:01:53]} e6 {[%emt 0:00:16]} 5. b3 {[%emt 0:03:15]} d5 {[%emt 0:01:51] A05: Réti Opening: 1 Nf3 Nf6} (5... c5 6. c4 a6 7. Na3 Qb6 8. Bb2 Be7 9. e3 d5 10. cxd5 Bxd5 11. d3 Nbd7 12. Qe2 O-O 13. Rfd1 Rfc8 14. Rac1 Bb7 {0-1 (62) Cheparinov,I (2710)-Fedoseev,V (2718) Riadh 2017}) 6. d3 {[%emt 0:05:00] LiveBook: 3 Games} (6. c4 $5) 6... c5 {[%emt 0:02:56]} 7. c4 {[%emt 0:03:34]} a6 {[%emt 0:15:16]} 8. Na3 $146 {[%emt 0:06:51]} ({Find the theoretical novelty and annotate with similar games:} 8. Bb2 Be7 9. Nbd2 O-O 10. Qc2 Nc6 11. a3 Nd7 12. d4 dxc4 13. bxc4 cxd4 14. Nxd4 Nxd4 15. Bxd4 Bxg2 16. Kxg2 {0-1 (41) Ortega Hermida,D (2329)-Kurajica,B (2528) Las Palmas 2016}) 8... Qb6 {[%emt 0:06:09]} 9. Qd2 {[%emt 0:09:48]} Bd6 {[%emt 0:05:24]} 10. Bb2 {[%emt 0:02:16]} Nbd7 {[%emt 0:00:09]} 11. Rfe1 {[%emt 0:07:25]} O-O {[%emt 0:00:34]} 12. e3 {[%emt 0:01:27]} e5 {[%emt 0:11:53]} 13. d4 {[%emt 0:10:26]} e4 {[%emt 0:14:30]} 14. Ne5 {[%emt 0:05:50]} Rad8 {[%emt 0:06:27]} 15. Nxd7 {[%emt 0:06:41]} Rxd7 {[%emt 0:00:22]} 16. cxb5 {[%emt 0:00:41]} axb5 {[%emt 0:01:10]} 17. dxc5 {[%emt 0:00:23]} Bxc5 {[%emt 0:00:36]} 18. Nc2 {[%emt 0:00:36]} Rc7 {[%emt 0:09:01]} 19. b4 {[%emt 0:05:43]} Be7 {[%emt 0:02:17]} 20. Nd4 {[%emt 0:00:55]} Rfc8 {[%emt 0:03:20]} 21. a3 {[%emt 0:03:19]} Ne8 {[%emt 0:00:27]} 22. Bh3 {[%emt 0:01:45]} Ra8 $16 {[%emt 0:01:11]} 23. Rec1 {[%emt 0:01:03]} Nd6 {[%emt 0:01:41]} 24. Rxc7 {[%emt 0:02:23]} Qxc7 {[%emt 0:00:01]} 25. Qe2 {[%emt 0:00:12]} Qb6 {[%emt 0:03:15]} 26. Bf1 {[%emt 0:06:35]} Nc4 {[%emt 0:00:28]} 27. Qc2 {[%emt 0:01:52]} Bf6 {[%emt 0:01:32]} 28. Bxc4 {[%emt 0:02:38]} dxc4 {[%emt 0:04:14]} 29. Rd1 {[%emt 0:01:46]} Re8 {[%emt 0:01:35]} 30. Nf5 {[%emt 0:02:26]} Qe6 {[%emt 0:02:45]} 31. g4 {[%emt 0:02:35]} Rd8 {[%emt 0:03:59]} 32. Rxd8+ {[%emt 0:01:25]} Bxd8 {[%emt 0:00:01]} 33. Bxg7 {[%emt 0:00:34]} Qg6 {[%emt 0:00:12]} 34. Qd1 {[%emt 0:00:34]} Bf6 {[%emt 0:01:29]} 35. Bxf6 {[%emt 0:00:42]} Qxf6 {[%emt 0:00:00]} 36. Qd7 {[%emt 0:00:19]} Ba6 {[%emt 0:00:41]} 37. Qe8# {[%emt 0:00:10]} 1-0

[Event "FRA-ch Youth U18 2018"]
[Site "Agen"]
[Date "2018.04.17"]
[Round "4"]
[White "Chachiachvili, Mariam"]
[Black "Joly, Audrey"]
[Result "1/2-1/2"]
[ECO "B01"]
[WhiteElo "1752"]
[BlackElo "1686"]
[Annotator "NA"]
[PlyCount "92"]
[EventDate "2018.??.??"]
[EventType "swiss"]
[EventCountry "FRA"]
[SourceTitle "playchess.com"]
[Source "ChessBase"]
[SourceQuality "1"]
[TimeControl "5400+30"]

1. e4 {[%emt 0:00:00]} d5 {[%emt 0:00:05]} 2. exd5 {[%emt 0:00:00]} Qxd5 {[%emt 0:00:07]} 3. Nc3 {[%emt 0:00:00]} Qa5 {[%emt 0:00:05]} 4. d4 {[%emt 0:00:11]} c6 {[%emt 0:00:09]} 5. Bc4 {[%emt 0:00:20]} Bf5 {[%emt 0:01:05]} 6. Nge2 {[%emt 0:00:59]} Nf6 {[%emt 0:01:00]} 7. Ng3 {[%emt 0:00:25]} Bg6 {[%emt 0:01:31]} 8. O-O {[%emt 0:00:13]} e6 {[%emt 0:01:16]} 9. f4 {[%emt 0:05:38]} Be7 {[%emt 0:17:00]} 10. f5 {[%emt 0:03:00]} exf5 {[%emt 0:01:43]} 11. Re1 {[%emt 0:04:13]} Qd8 {[%emt 0:01:55]} 12. Nce2 {[%emt 0:08:04]} O-O {[%emt 0:03:52]} 13. Nf4 {[%emt 0:01:15]} Bd6 {[%emt 0:02:03]} 14. c3 {[%emt 0:07:11]} Bxf4 {[%emt 0:09:04]} 15. Bxf4 {[%emt 0:00:11]} Re8 {[%emt 0:03:20]} 16. Qb3 {[%emt 0:05:15]} Qd7 {[%emt 0:10:30]} 17. Rxe8+ {[%emt 0:16:54]} Nxe8 {[%emt 0:00:32]} 18. Re1 {[%emt 0:00:05]} b5 {[%emt 0:03:38]} 19. Bd3 {[%emt 0:00:52]} Na6 {[%emt 0:01:02]} 20. Qa3 {[%emt 0:09:05]} Nac7 {[%emt 0:04:28]} 21. Re7 {[%emt 0:00:50]} Qc8 {[%emt 0:00:40]} 22. Bxc7 {[%emt 0:07:36]} Nxc7 {[%emt 0:00:44]} 23. Qa5 {[%emt 0:01:52]} Nd5 {[%emt 0:02:32]} 24. Rxa7 {[%emt 0:00:38]} Rxa7 {[%emt 0:00:38]} 25. Qxa7 {[%emt 0:00:09]} f4 {[%emt 0:02:49]} 26. Bxg6 {[%emt 0:05:28]} hxg6 {[%emt 0:00:46]} 27. Ne2 {[%emt 0:10:42]} Qe8 {[%emt 0:01:59]} 28. Kf2 {[%emt 0:00:55]} Qe3+ {[%emt 0:01:07]} 29. Ke1 {[%emt 0:00:47]} f3 {[%emt 0:00:43]} 30. gxf3 {[%emt 0:00:21]} Qe6 {[%emt 0:10:13]} 31. Qb8+ {[%emt 0:00:41]} Kh7 {[%emt 0:00:11]} 32. Qe5 {[%emt 0:00:42]} Qh3 {[%emt 0:01:13]} 33. Qg3 {[%emt 0:00:30]} Qe6 {[%emt 0:00:42]} 34. Qe5 {[%emt 0:00:02]} Qh3 {[%emt 0:00:11]} 35. Kf2 {[%emt 0:08:27]} Qh4+ {[%emt 0:01:18]} 36. Qg3 {[%emt 0:00:08]} Qe7 {[%emt 0:00:32]} 37. Qh3+ {[%emt 0:00:16]} Kg8 {[%emt 0:00:14]} 38. Qc8+ {[%emt 0:00:05]} Kh7 {[%emt 0:00:17]} 39. Qxc6 {[%emt 0:03:11]} Qh4+ {[%emt 0:00:15]} 40. Ng3 {[%emt 0:02:18]} Qxh2+ {[%emt 0:00:12]} 41. Kf1 {[%emt 0:00:30]} Ne3+ {[%emt 0:01:06]} 42. Ke1 {[%emt 0:00:01]} Nc2+ {[%emt 0:01:58]} 43. Kd1 {[%emt 0:00:56]} Ne3+ {[%emt 0:00:12]} 44. Ke1 {[%emt 0:00:00]} Nc2+ {[%emt 0:05:32]} 45. Kd1 {[%emt 0:00:03]} Ne3+ {[%emt 0:00:16]} 46. Ke1 {[%emt 0:00:00]} Nc2+ 1/2-1/2

[Event "FRA-ch Youth U18 2018"]
[Site "Agen"]
[Date "2018.04.17"]
[Round "4"]
[White "Milroy, Melena"]
[Black "Rollot, Florence"]
[Result "1-0"]
[ECO "B01"]
[WhiteElo "1718"]
[BlackElo "2042"]
[Annotator "NA"]
[PlyCount "105"]
[EventDate "2018.??.??"]
[EventType "swiss"]
[EventCountry "FRA"]
[SourceTitle "playchess.com"]
[Source "ChessBase"]
[SourceQuality "1"]
[TimeControl "5400+30"]

1. e4 {[%emt 0:00:00]} d5 {[%emt 0:00:07]} 2. exd5 {[%emt 0:00:00]} Qxd5 {[%emt 0:00:04]} 3. Nc3 {[%emt 0:00:00]} Qa5 {[%emt 0:00:04]} 4. d4 {[%emt 0:00:00]} Nf6 {[%emt 0:00:05]} 5. Nf3 {[%emt 0:00:00]} Bf5 {[%emt 0:00:08]} 6. Ne5 {[%emt 0:00:03]} c6 {[%emt 0:00:08]} 7. g4 {[%emt 0:00:05]} Bg6 {[%emt 0:13:17] LiveBook: 8 Games [#]} (7... Be6 $1 $11) 8. h4 $1 {[%emt 0:00:39]} Nbd7 {[%emt 0:09:39] [#]} 9. Nc4 $1 {[%emt 0:01:41]} Qc7 {[%emt 0:00:32]} 10. h5 {[%emt 0:00:23]} Be4 {[%emt 0:00:25] B01: Scandinavian Defence} 11. Nxe4 {[%emt 0:00:05]} Nxe4 {[%emt 0:00:08]} 12. Qf3 {[%emt 0:00:05]} Nd6 {[%emt 0:07:38]} 13. Bf4 {[%emt 0:00:09]} Nb6 {[%emt 0:03:52]} 14. Ne3 {[%emt 0:01:19]} e6 {[%emt 0:06:35]} 15. c4 {[%emt 0:06:13]} Na4 $146 {[%emt 0:10:17]} ({Predecessor:} 15... c5 16. d5 exd5 17. Nxd5 Nxd5 18. Qxd5 {1-0 (39) Zifroni,D (2489)-Haimovich,T (2425) Herzliya 2008}) 16. O-O-O {[%emt 0:01:48]} c5 {[%emt 0:06:14]} 17. dxc5 {[%emt 0:09:42]} Qxc5 {[%emt 0:00:42]} 18. Bxd6 {[%emt 0:00:28]} Bxd6 {[%emt 0:00:07]} 19. Qxb7 {[%emt 0:00:42]} Nb6 {[%emt 0:13:12]} 20. Qe4 {[%emt 0:11:57]} Rb8 {[%emt 0:10:59]} 21. Nf5 {[%emt 0:23:05]} Be5 {[%emt 0:01:58]} 22. b4 $11 {[%emt 0:22:11]} Qc7 {[%emt 0:09:21]} 23. Nd4 {[%emt 0:20:11]} Bf4+ {[%emt 0:04:32]} 24. Kb2 {[%emt 0:00:37]} Nxc4+ {[%emt 0:01:07]} 25. Bxc4 {[%emt 0:00:30]} Qxc4 {[%emt 0:00:03]} 26. Qc6+ {[%emt 0:00:09]} Qxc6 {[%emt 0:00:41]} 27. Nxc6 {[%emt 0:00:04]} Ra8 {[%emt 0:00:28]} 28. Rd4 {[%emt 0:00:31]} Bg5 {[%emt 0:00:07]} 29. Kb3 {[%emt 0:00:19]} Bf6 {[%emt 0:00:53]} 30. Rd3 {[%emt 0:00:07]} O-O {[%emt 0:00:27]} 31. f3 {[%emt 0:00:29]} Rfc8 {[%emt 0:00:21]} 32. b5 {[%emt 0:00:23]} a6 {[%emt 0:01:01]} 33. a4 {[%emt 0:00:20]} Kf8 {[%emt 0:00:38]} 34. Rd7 {[%emt 0:00:13]} Ke8 {[%emt 0:00:49]} 35. Rhd1 {[%emt 0:00:09]} g6 {[%emt 0:00:40]} 36. hxg6 {[%emt 0:00:22]} hxg6 {[%emt 0:00:04]} 37. Kb4 {[%emt 0:00:26]} axb5 {[%emt 0:00:36]} 38. axb5 {[%emt 0:00:19]} Ra2 {[%emt 0:00:23]} 39. Kc5 {[%emt 0:00:38]} Bg5 {[%emt 0:00:52]} 40. Kb6 {[%emt 0:00:51]} Rca8 {[%emt 0:00:33]} 41. Kb7 {[%emt 0:00:56]} f5 {[%emt 0:00:24]} 42. gxf5 {[%emt 0:01:20]} gxf5 {[%emt 0:00:15]} 43. b6 {[%emt 0:00:26]} Be3 {[%emt 0:00:58]} 44. Na7 {[%emt 0:00:51]} R8xa7+ {[%emt 0:00:15]} 45. bxa7 {[%emt 0:00:09]} Rxa7+ {[%emt 0:00:09]} 46. Kc6 {[%emt 0:00:09]} Ra6+ {[%emt 0:00:49]} 47. Kb5 {[%emt 0:00:45]} Rb6+ {[%emt 0:00:11]} 48. Ka5 {[%emt 0:00:25]} f4 {[%emt 0:00:38]} 49. Rh7 {[%emt 0:01:15]} Rb2 {[%emt 0:00:48]} 50. Rdd7 {[%emt 0:00:51]} Rb6 {[%emt 0:00:43]} 51. Ra7 {[%emt 0:00:30]} Rb5+ {[%emt 0:00:32]} 52. Kxb5 {[%emt 0:00:15]} Bxa7 {[%emt 0:00:01]} 53. Rxa7 {[%emt 0:00:10]} 1-0